bitfinex-derivatives/quotes_BTCF0:USTF0_20250119
["timestamp","ask_amount","ask_price","bid_price","bid_amount"]
[1737330968090,0.47786046,101640.0,101600.0,0.48967837]
[1737330968601,0.3608,101640.0,101610.0,0.3608]
[1737330968801,0.3608,101640.0,101600.0,0.48967837]
[1737330969101,0.3608,101640.0,101610.0,0.3608]
[1737330969398,0.3608,101640.0,101600.0,0.48967837]
[1737330969595,0.3608,101640.0,101610.0,0.12887837]
[1737330969894,0.3608,101640.0,101600.0,0.48967837]
[1737330970090,0.47786046,101640.0,101610.0,0.12887837]
[1737330970292,0.3608,101630.0,101610.0,0.12887837]
[1737330970494,0.3608,101630.0,101600.0,0.48967837]
[1737330970691,0.3608,101630.0,101600.0,0.12887837]
[1737330970897,0.3608,101620.0,101600.0,0.12887837]
[1737330971097,0.3608,101610.0,101580.0,0.48967837]
[1737330971390,0.3608,101600.0,101580.0,0.48967837]
[1737330971590,0.3608,101620.0,101590.0,0.12887837]
[1737330971797,0.3608,101610.0,101580.0,0.48967837]
[1737330972096,0.3608,101620.0,101590.0,0.12887837]
[1737330972293,0.3608,101620.0,101580.0,0.48967837]
[1737330972496,0.3608,101610.0,101580.0,0.48967837]
[1737330972694,0.410069,101620.0,101580.0,0.48967837]
[1737330972889,0.36119553,101610.0,101580.0,0.48967837]
[1737330973104,0.00039553,101610.0,101580.0,0.48967837]
[1737330973298,0.36119553,101610.0,101590.0,0.12887837]
[1737330973695,0.00039553,101610.0,101590.0,0.12887837]
[1737330973898,0.00039553,101610.0,101590.0,0.48967837]
[1737330974095,0.36119553,101610.0,101570.0,1.02540171]
[1737330974291,0.3608,101600.0,101570.0,0.53572334]
[1737330974494,0.3608,101590.0,101570.0,0.00584334]
[1737330974787,0.48967837,101580.0,101560.0,0.00158195]
[1737330974991,0.88137837,101570.0,101550.0,0.17580779]
[1737330975191,0.3608,101560.0,101550.0,0.17580779]
[1737330975594,0.3608,101560.0,101510.0,0.76540496]
[1737330975595,0.53897637,101560.0,101510.0,0.76540496]
[1737330975800,0.53897637,101560.0,101520.0,0.17508771]
[1737330975801,0.3608,101540.0,101520.0,0.17508771]
[1737330975988,0.36090859,101530.0,101520.0,0.17508771]
[1737330976890,0.41022059,101530.0,101520.0,0.17508771]
[1737330977091,0.049317,101520.0,101510.0,0.00147736]
[1737330977299,0.049322,101510.0,101500.0,0.1]
[1737330977498,0.049328,101500.0,101480.0,8.625e-05]
[1737330977695,0.3608,101490.0,101480.0,8.625e-05]
[1737330978210,0.410132,101490.0,101480.0,8.625e-05]
[1737330978408,0.3608,101490.0,101480.0,8.625e-05]
[1737330978601,0.410132,101490.0,101480.0,8.625e-05]
[1737330978800,0.410132,101490.0,101440.0,0.3608]
[1737330978801,0.410132,101490.0,101440.0,0.48967837]
[1737330979002,0.3608,101470.0,101440.0,0.3608]
[1737330979408,0.3608,101460.0,101440.0,0.3608]
[1737330979803,0.36089648,101450.0,101430.0,1.12728572]
[1737330980005,9.648e-05,101450.0,101440.0,0.3608]
[1737330980498,9.648e-05,101450.0,101430.0,1.02079649]
[1737330980704,9.648e-05,101450.0,101440.0,0.3608]
[1737330981101,9.648e-05,101450.0,101430.0,0.53905648]
[1737330981297,9.648e-05,101450.0,101430.0,0.89985648]
[1737330981909,0.36089648,101450.0,101430.0,0.89985648]
[1737330982112,9.648e-05,101450.0,101430.0,0.89985648]
[1737330982407,0.36089648,101450.0,101430.0,0.53905648]
[1737330982612,0.36089648,101450.0,101430.0,0.00941648]
[1737330982909,0.53903437,101440.0,101430.0,0.00147812]
[1737330983115,0.53903437,101440.0,101400.0,0.62989444]
[1737330983116,0.53903437,101440.0,101400.0,0.10009444]
[1737330983416,0.3608,101420.0,101400.0,0.10009444]
[1737330984507,0.3608,101410.0,101400.0,0.10009444]
[1737330984709,0.36091767,101410.0,101400.0,0.10009444]
[1737330985805,0.36091767,101410.0,101400.0,0.12478145]
[1737330986711,0.36091767,101410.0,101400.0,0.10009444]
[1737330990015,0.53904937,101410.0,101400.0,0.10009444]
[1737330990201,0.95094937,101410.0,101390.0,0.0077483]
[1737330990402,0.95094937,101410.0,101370.0,0.52996]
[1737330990403,0.7727,101410.0,101370.0,0.89076]
[1737330990606,0.4042,101410.0,101390.0,0.3608]
[1737330990811,0.3608,101410.0,101380.0,0.48967837]
[1737330991209,0.00011288,101400.0,101370.0,2.031]
[1737330991411,0.48979125,101400.0,101370.0,1.8608]
[1737330991611,8.436e-05,101390.0,101360.0,0.037]
[1737330991805,0.36088436,101390.0,101360.0,0.037]
[1737330992011,0.36088935,101380.0,101370.0,0.049388]
[1737330992313,8.935e-05,101380.0,101370.0,0.049388]
[1737330992514,0.36088935,101380.0,101370.0,0.049388]
[1737330994022,0.18333307,101390.0,101370.0,0.049388]
[1737330994321,0.049377,101400.0,101370.0,0.410188]
[1737330994516,0.410177,101400.0,101370.0,0.410188]
[1737330995117,7.537e-05,101390.0,101370.0,0.410188]
[1737330995318,7.537e-05,101390.0,101380.0,0.48967837]
[1737330995828,7.537e-05,101390.0,101380.0,0.3608]
[1737330996123,0.3608,101430.0,101380.0,0.48967837]
[1737330996317,0.3608,101410.0,101390.0,0.48967837]
[1737330996519,0.049371,101410.0,101380.0,0.3608]
[1737330996715,0.410171,101410.0,101370.0,0.410188]
[1737330997214,0.00010997,101400.0,101370.0,0.410188]
[1737330997418,0.36090997,101400.0,101370.0,0.410188]
[1737330997922,0.00010997,101400.0,101370.0,0.410188]
[1737330998124,0.41028597,101400.0,101370.0,0.410188]
[1737330998318,0.04948597,101400.0,101370.0,0.410188]
[1737330998518,0.00010997,101400.0,101380.0,0.3608]
[1737330999121,0.00010997,101400.0,101390.0,0.3608]
[1737330999916,0.00010997,101400.0,101370.0,0.85326637]
[1737331000117,0.00010997,101400.0,101380.0,0.3608]
[1737331000317,0.410181,101390.0,101360.0,0.04486728]
[1737331000516,0.36089614,101380.0,101360.0,0.04486728]
[1737331000717,0.36089869,101370.0,101360.0,0.037]
[1737331000917,0.53906437,101380.0,101360.0,0.037]
[1737331001117,0.410186,101380.0,101360.0,0.037]
[1737331001313,0.3608,101370.0,101360.0,0.037]
[1737331002023,0.53906837,101370.0,101350.0,0.00147966]
[1737331002224,0.410195,101360.0,101350.0,0.00147966]
[1737331002426,0.410191,101370.0,101350.0,0.00147966]
[1737331002726,0.0001143,101360.0,101350.0,0.00147966]
[1737331003027,0.3609143,101360.0,101350.0,0.00147966]
[1737331003223,0.48967837,101360.0,101350.0,0.00147966]
[1737331003521,0.53907337,101360.0,101340.0,8.395e-05]
[1737331003725,0.36092187,101350.0,101340.0,8.395e-05]
[1737331003928,0.53907837,101350.0,101340.0,8.395e-05]
[1737331004335,0.049405,101340.0,101330.0,0.52227164]
[1737331004519,0.04941,101330.0,101320.0,0.3481811]
[1737331004718,0.049414,101320.0,101310.0,0.40621128]
[1737331004920,0.410214,101320.0,101310.0,0.7156419]
[1737331005123,0.41029361,101320.0,101310.0,0.7156419]
[1737331005323,0.410214,101320.0,101310.0,0.7156419]
[1737331005825,0.53909237,101320.0,101310.0,0.7156419]
[1737331006522,0.54009237,101320.0,101310.0,0.7156419]
[1737331006723,0.049419,101310.0,101300.0,0.15090339]
[1737331006926,0.410219,101310.0,101300.0,0.15139733]
[1737331008222,0.410219,101310.0,101300.0,0.149423]
[1737331008823,0.41134105,101310.0,101300.0,0.149423]
[1737331009024,0.411219,101310.0,101300.0,0.149423]
[1737331009531,0.54009737,101310.0,101270.0,0.05092022]
[1737331009733,0.410226,101300.0,101270.0,0.05092022]
[1737331009936,9.135e-05,101290.0,101270.0,0.41172022]
[1737331010625,0.00012492,101280.0,101270.0,0.00148122]
[1737331010933,0.36092492,101280.0,101270.0,0.00148122]
[1737331011129,0.48980329,101280.0,101270.0,0.00148122]
[1737331011325,0.89991237,101280.0,101270.0,0.00148122]
[1737331011521,0.049439,101270.0,101260.0,6.982e-05]
[1737331011722,0.049444,101260.0,101220.0,0.7821]
[1737331011924,0.3608,101250.0,101220.0,0.78987586]
[1737331012123,0.48967837,101240.0,101220.0,0.36857586]
[1737331012319,0.48967837,101230.0,101200.0,0.1]
[1737331012627,0.12887837,101220.0,101200.0,0.1]
[1737331012822,9.214e-05,101210.0,101200.0,0.1]
[1737331013828,0.53914637,101210.0,101200.0,0.1]
[1737331014028,0.5392225,101210.0,101200.0,0.1]
[1737331014329,0.53914637,101210.0,101200.0,0.1]
[1737331014527,0.3608,101210.0,101200.0,0.149473]
[1737331014729,6e-07,101210.0,101200.0,0.510273]
[1737331014924,6e-07,101210.0,101200.0,0.63915137]
[1737331015328,0.3608,101260.0,101200.0,0.93915137]
[1737331015527,0.53912237,101260.0,101230.0,0.3608]
[1737331015727,0.3608,101240.0,101220.0,0.3608]
[1737331015922,0.3608,101230.0,101200.0,0.1]
[1737331016128,0.410259,101230.0,101200.0,0.1]
[1737331016329,0.001,101210.0,101200.0,0.1]
[1737331017433,0.411268,101210.0,101200.0,0.1]
[1737331017836,0.410268,101210.0,101180.0,0.00772522]
[1737331018138,8.525e-05,101200.0,101180.0,0.3608]
[1737331018434,7.011e-05,101190.0,101180.0,0.3608]
[1737331018630,0.17835237,101200.0,101180.0,0.3608]
[1737331018829,0.00010527,101190.0,101180.0,0.3608]
[1737331019427,0.00010527,101190.0,101170.0,0.37025363]
[1737331019634,0.00110527,101190.0,101170.0,0.37025363]
[1737331020433,0.00110527,101190.0,101180.0,0.3608]
[1737331020833,0.00110527,101190.0,101170.0,0.37025363]
[1737331021129,0.17175664,101200.0,101170.0,0.37025363]
[1737331021336,0.050478,101190.0,101170.0,0.37025363]
[1737331021528,0.53916137,101180.0,101170.0,0.00945363]
[1737331021729,0.48967837,101180.0,101150.0,0.36089798]
[1737331021930,0.049498,101150.0,101130.0,0.58721945]
[1737331022134,0.410298,101150.0,101130.0,0.58721945]
[1737331022340,0.53918037,101140.0,101130.0,0.58721945]
[1737331022533,0.53918037,101140.0,101130.0,0.58573607]
[1737331022730,0.83918037,101140.0,101130.0,0.58573607]
[1737331022925,0.049507,101130.0,101120.0,0.049512]
[1737331023125,0.48967837,101160.0,101120.0,0.3608]
[1737331023331,0.00052001,101170.0,101140.0,0.3608]
[1737331023538,0.049493,101160.0,101150.0,0.049493]
[1737331023733,0.12887837,101180.0,101140.0,0.410302]
[1737331024036,0.12887837,101180.0,101170.0,0.049488]
[1737331024225,0.12887837,101180.0,101140.0,0.049502]
[1737331024430,0.049488,101170.0,101150.0,0.3608]
[1737331024827,0.410288,101170.0,101150.0,0.3608]
[1737331025031,0.049488,101170.0,101130.0,0.36228335]
[1737331025231,0.3608,101170.0,101130.0,0.36228335]
[1737331025430,0.53917237,101160.0,101130.0,0.36228335]
[1737331025631,0.3608,101150.0,101130.0,0.00148335]
[1737331026028,0.41081401,101160.0,101130.0,0.00148335]
[1737331026238,0.049498,101150.0,101130.0,0.00148335]
[1737331026429,0.3608,101150.0,101130.0,0.00148335]
[1737331026630,0.410294,101160.0,101130.0,0.00148335]
[1737331026631,0.410294,101160.0,101130.0,0.36228335]
[1737331026830,0.410294,101160.0,101130.0,0.04283368]
[1737331027036,0.049494,101160.0,101130.0,0.36228335]
[1737331027434,0.049498,101150.0,101130.0,0.00148335]
[1737331027636,0.049502,101140.0,101130.0,0.00148335]
[1737331028239,0.410302,101140.0,101130.0,0.00148335]
[1737331028541,0.050498,101150.0,101130.0,0.00148335]
[1737331028742,0.411298,101150.0,101130.0,0.00148335]
[1737331029243,0.411299,101150.0,101130.0,0.36228335]
[1737331029438,0.001,101150.0,101130.0,0.00148335]
[1737331029643,0.001,101150.0,101130.0,0.04287448]
[1737331029941,0.3618,101150.0,101130.0,0.36228335]
[1737331030135,0.001,101150.0,101130.0,0.40369404]
[1737331030338,0.001,101150.0,101130.0,0.04289404]
[1737331030540,0.049474,101200.0,101140.0,0.7216]
[1737331030741,0.410274,101200.0,101150.0,0.48967837]
[1737331030936,0.049493,101160.0,101150.0,0.04141069]
[1737331031137,0.049493,101160.0,101130.0,1.20778335]
[1737331031337,0.049479,101190.0,101150.0,0.48967837]
[1737331031541,0.3608,101190.0,101150.0,0.53109577]
[1737331031740,0.41028,101190.0,101150.0,0.53109577]
[1737331032036,0.410291,101170.0,101150.0,0.4022174]
[1737331032240,0.049499,101150.0,101130.0,1.20778335]
[1737331032434,0.410299,101150.0,101130.0,0.83494416]
[1737331032636,0.049502,101140.0,101130.0,0.04294416]
[1737331032844,0.53918037,101140.0,101130.0,0.00148335]
[1737331033343,0.17838037,101140.0,101130.0,0.00148335]
[1737331033547,0.53918037,101140.0,101130.0,0.00148335]
[1737331033849,0.049502,101140.0,101130.0,0.00148335]
[1737331034036,0.410302,101140.0,101130.0,0.00148335]
[1737331034438,0.3608,101140.0,101130.0,0.00148335]
[1737331034635,0.410293,101160.0,101130.0,0.36228335]
[1737331034942,0.410302,101140.0,101130.0,0.00148335]
[1737331038047,0.410302,101140.0,101110.0,0.52395395]
[1737331038048,0.410302,101140.0,101100.0,0.46850569]
[1737331038246,0.410317,101110.0,101100.0,0.1]
[1737331039445,0.710317,101110.0,101080.0,0.58573607]
[1737331039639,0.17840537,101090.0,101080.0,0.58573607]
[1737331039843,0.17840537,101090.0,101080.0,0.63526807]
[1737331039844,0.53920537,101090.0,101080.0,0.63526807]
[1737331040042,0.53920537,101090.0,101080.0,0.58573607]
[1737331040236,0.53920537,101090.0,101080.0,0.63526807]
[1737331040444,0.17840537,101090.0,101080.0,0.049532]
[1737331040645,0.17840537,101090.0,101070.0,7.331e-05]
[1737331040844,0.12887837,101090.0,101070.0,7.331e-05]
[1737331041244,0.17840537,101090.0,101070.0,7.331e-05]
[1737331041444,0.7216,101080.0,101050.0,0.0014844]
[1737331041645,0.049534,101080.0,101060.0,0.3608]
[1737331041954,0.001,101090.0,101070.0,0.3608]
[1737331042139,0.17841137,101080.0,101050.0,0.3622844]
[1737331042447,0.12887837,101080.0,101060.0,0.3608]
[1737331042650,0.001,101090.0,101070.0,0.3608]
[1737331042954,0.001,101090.0,101080.0,0.3608]
[1737331043839,0.17940537,101090.0,101070.0,0.3608]
[1737331044041,0.001,101080.0,101060.0,0.6643]
[1737331044251,0.001,101080.0,101050.0,0.36228449]
[1737331044645,0.050533,101080.0,101050.0,0.00148449]
[1737331044849,0.049533,101080.0,101050.0,0.00148449]
[1737331045053,0.049533,101080.0,101050.0,0.36228449]
[1737331045548,0.410333,101080.0,101050.0,0.36228449]
[1737331045756,0.410333,101080.0,101050.0,0.00148449]
[1737331045945,0.53921537,101070.0,101050.0,0.00148449]
[1737331046449,0.410342,101060.0,101050.0,0.00148449]
[1737331046651,0.049542,101060.0,101050.0,0.00148449]
[1737331046848,0.53921537,101070.0,101050.0,0.36228449]
[1737331047043,0.049542,101060.0,101050.0,0.00148449]
[1737331047243,0.3608,101060.0,101020.0,0.3608]
[1737331047450,0.049553,101040.0,101020.0,0.3608]
[1737331047656,0.049553,101040.0,101030.0,0.049556]
[1737331048150,0.049548,101050.0,101040.0,0.049551]
[1737331048357,0.12987837,101060.0,101050.0,0.049547]
[1737331048547,0.001,101060.0,101050.0,0.410347]
[1737331049049,0.001,101060.0,101050.0,0.049547]
[1737331049443,0.411342,101060.0,101050.0,0.049547]
[1737331049645,0.411342,101060.0,101030.0,0.3608]
[1737331049847,0.001,101040.0,101030.0,0.3608]
[1737331050051,0.001,101040.0,101020.0,0.95194334]
[1737331050249,0.001,101040.0,101030.0,0.3608]
[1737331050447,0.12887837,101070.0,101030.0,0.3608]
[1737331050649,0.001,101060.0,101050.0,0.3608]
[1737331050848,0.52776777,101090.0,101050.0,0.85047837]
[1737331051148,0.410334,101080.0,101060.0,0.3608]
[1737331051349,0.12887837,101070.0,101060.0,0.3608]
[1737331051550,0.17841937,101070.0,101040.0,0.76313858]
[1737331051950,0.17841037,101080.0,101050.0,0.3608]
[1737331052145,0.12887837,101080.0,101050.0,0.3608]
[1737331052345,0.049532,101080.0,101050.0,0.3608]
[1737331052546,0.410332,101080.0,101050.0,0.3608]
[1737331052951,0.53921637,101070.0,101040.0,0.80033858]
[1737331053155,0.3608,101060.0,101040.0,0.80033858]
[1737331053358,0.410342,101060.0,101040.0,0.80033858]
[1737331053656,0.3608,101070.0,101050.0,0.3608]
[1737331053952,0.3608,101080.0,101050.0,0.3608]
[1737331054155,0.53920937,101090.0,101060.0,0.3608]
[1737331054356,0.3608,101080.0,101050.0,0.3608]
[1737331054760,0.3608,101080.0,101060.0,0.3608]
[1737331055060,0.12887837,101100.0,101070.0,0.3608]
[1737331055352,0.11743977,101110.0,101090.0,0.3608]
[1737331055856,0.11743977,101120.0,101090.0,0.3608]
[1737331056155,0.11743977,101120.0,101100.0,0.3608]
[1737331056355,0.11743977,101120.0,101110.0,0.3608]
[1737331056752,0.3608,101140.0,101110.0,0.3608]
[1737331057157,0.52773777,101150.0,101110.0,0.3608]
[1737331057347,0.47823977,101150.0,101110.0,0.3608]
[1737331057559,0.11743977,101140.0,101120.0,0.3608]
[1737331057758,0.11743977,101140.0,101120.0,1.1807]
[1737331057958,0.14679971,101150.0,101130.0,0.48967837]
[1737331058158,0.14679971,101150.0,101140.0,0.3608]
[1737331058352,0.13909971,101150.0,101140.0,0.3608]
[1737331058552,0.17615966,101170.0,101140.0,0.6608]
[1737331058760,0.17615966,101170.0,101160.0,0.3608]
[1737331058957,0.17615966,101170.0,101140.0,0.3608]
[1737331059151,0.53917637,101150.0,101120.0,1.7139]
[1737331059354,0.3608,101140.0,101120.0,1.7129]
[1737331059549,0.12887837,101150.0,101120.0,1.7129]
[1737331059758,0.3608,101160.0,101130.0,0.3608]
[1737331059955,0.53695966,101160.0,101130.0,0.3608]
[1737331060149,0.53695966,101160.0,101120.0,1.7139]
[1737331060150,0.22565266,101160.0,101120.0,1.7139]
[1737331060353,0.3608,101150.0,101120.0,1.7129]
[1737331060555,0.3608,101150.0,101130.0,0.3608]
[1737331060755,0.3608,101150.0,101120.0,1.71386]
[1737331060953,0.53917637,101150.0,101120.0,0.95211889]
[1737331061256,0.3608,101140.0,101120.0,0.90131889]
[1737331061960,0.3608,101140.0,101120.0,0.54051889]
[1737331063061,0.48967837,101130.0,101110.0,0.00148318]
[1737331063252,0.410312,101120.0,101110.0,0.00148318]
[1737331063866,0.3608,101130.0,101110.0,0.00148318]
[1737331064068,0.00052001,101140.0,101120.0,0.3608]
[1737331064258,0.71533703,101150.0,101120.0,0.3608]
[1737331064458,0.049503,101140.0,101110.0,0.36228318]
[1737331064670,0.3608,101150.0,101120.0,0.3608]
[1737331064968,0.17553355,101130.0,101120.0,0.48967837]
[1737331065477,0.05287105,101140.0,101120.0,1.18347837]
[1737331065775,0.2055196,101150.0,101130.0,0.3608]
[1737331065969,0.2055196,101150.0,101140.0,0.3608]
[1737331066375,0.2055196,101150.0,101120.0,0.88347837]
[1737331066578,0.5663196,101150.0,101130.0,0.3608]
[1737331066771,0.5663196,101150.0,101120.0,0.7546]
[1737331067072,0.5663196,101150.0,101120.0,0.3938]
[1737331067073,0.410298,101150.0,101120.0,0.3938]
[1737331067271,0.48967837,101140.0,101110.0,0.39348318]
[1737331067474,0.53918237,101140.0,101110.0,0.75428318]
[1737331067676,0.53918237,101140.0,101110.0,0.00148318]
[1737331067970,0.48967837,101120.0,101110.0,0.00148318]
[1737331068170,0.66193109,101130.0,101110.0,0.00148318]
[1737331068367,0.410312,101120.0,101110.0,0.00148318]
[1737331068576,0.53919037,101120.0,101110.0,0.00148318]
[1737331068772,0.74130246,101120.0,101080.0,0.89292]
[1737331068971,0.410327,101090.0,101080.0,0.00148401]
[1737331069377,0.049527,101090.0,101080.0,0.00148401]
[1737331069577,0.410327,101090.0,101080.0,0.00148401]
[1737331070374,0.410327,101090.0,101050.0,0.05815341]
[1737331070375,0.049539,101070.0,101050.0,0.05815341]
[1737331070670,0.3608,101060.0,101050.0,0.05815341]
[1737331070873,0.410339,101070.0,101050.0,0.05]
[1737331071276,0.36089092,101060.0,101050.0,0.05]
[1737331072177,0.36089092,101060.0,101050.0,0.7108]
[1737331072178,0.45350538,101060.0,101050.0,0.7108]
[1737331072384,0.410318,101110.0,101100.0,0.049522]
[1737331072573,0.049518,101110.0,101100.0,0.049522]
[1737331072772,0.410318,101110.0,101100.0,0.049522]
[1737331072982,0.3608,101110.0,101100.0,0.049522]
[1737331073185,0.96365138,101120.0,101100.0,0.410322]
[1737331073386,0.3608,101110.0,101090.0,0.3608]
[1737331073578,0.7533,101120.0,101080.0,0.54752566]
[1737331073780,0.3608,101110.0,101090.0,0.3608]
[1737331074179,0.410312,101120.0,101090.0,0.3608]
[1737331074383,0.3608,101120.0,101090.0,0.3608]
[1737331074977,0.410314,101120.0,101090.0,0.3608]
[1737331075177,0.410318,101110.0,101080.0,0.36911529]
[1737331075379,0.3608,101110.0,101080.0,0.00831529]
[1737331075672,0.3608,101110.0,101070.0,0.3608]
[1737331075673,0.410318,101110.0,101070.0,0.3608]
[1737331075876,0.08805523,101090.0,101070.0,0.3608]
[1737331076080,0.08805523,101090.0,101080.0,0.3608]
[1737331076280,0.08805523,101090.0,101070.0,0.3608]
[1737331076487,0.08805523,101090.0,101070.0,0.00826011]
[1737331076687,0.44885523,101090.0,101060.0,0.49116261]
[1737331076879,0.44885523,101090.0,101070.0,0.3608]
[1737331077285,0.08805523,101090.0,101070.0,0.3608]
[1737331077591,0.08805523,101090.0,101080.0,0.3608]
[1737331077780,0.08805523,101090.0,101080.0,0.48967837]
[1737331077979,0.410314,101120.0,101080.0,0.12887837]
[1737331078175,0.410314,101120.0,101090.0,0.3608]
[1737331078389,0.3608,101120.0,101080.0,0.48967837]
[1737331078583,0.3608,101120.0,101090.0,0.3608]
[1737331078993,0.410312,101120.0,101080.0,0.48967837]
[1737331079188,0.410312,101120.0,101070.0,0.3608]
[1737331079189,0.410318,101110.0,101070.0,0.3608]
[1737331079581,0.410318,101110.0,101090.0,0.3608]
[1737331079582,0.3608,101110.0,101090.0,0.3608]
[1737331079789,0.53919237,101120.0,101090.0,0.3608]
[1737331080088,0.3608,101110.0,101080.0,0.3608]
[1737331080292,0.3608,101110.0,101070.0,0.3608]
[1737331080486,0.3608,101110.0,101080.0,0.48967837]
[1737331080784,0.3608,101110.0,101080.0,0.28165892]
[1737331080989,0.3608,101110.0,101080.0,0.41053729]
[1737331081196,0.12887837,101140.0,101080.0,0.41053729]
[1737331081197,0.410304,101140.0,101100.0,0.3608]
[1737331081497,0.3608,101130.0,101100.0,0.48967837]
[1737331081684,0.3608,101140.0,101110.0,0.3608]
[1737331082187,0.3608,101130.0,101110.0,0.3608]
[1737331082577,0.91863892,101150.0,101120.0,0.48967837]
[1737331082982,0.91863892,101150.0,101130.0,0.3608]
[1737331083184,0.91863892,101150.0,101140.0,0.3608]
[1737331083185,0.55783892,101150.0,101140.0,0.3608]
[1737331083489,0.7609,101180.0,101140.0,1.02179837]
[1737331083694,0.3608,101180.0,101150.0,0.48967837]
[1737331083897,0.26423949,101190.0,101170.0,0.12887837]
[1737331084284,0.26423949,101190.0,101170.0,0.48967837]
[1737331084581,0.26423949,101190.0,101170.0,0.3608]
[1737331084785,0.3608,101190.0,101170.0,0.48967837]
[1737331085087,0.510273,101200.0,101150.0,1.62877837]
[1737331085285,0.3608,101190.0,101150.0,1.62877837]
[1737331085488,0.3608,101180.0,101150.0,1.62877837]
[1737331085893,0.53656199,101190.0,101160.0,0.3608]
[1737331086091,0.3608,101180.0,101150.0,1.62973837]
[1737331086294,0.53656199,101190.0,101150.0,1.62877837]
[1737331086680,0.17576199,101190.0,101180.0,0.3608]
[1737331086889,0.17576199,101190.0,101170.0,0.12887837]
[1737331087087,0.17576199,101190.0,101180.0,0.3608]
[1737331087389,0.17576199,101180.0,101170.0,0.48967837]
[1737331087691,0.52886199,101180.0,101150.0,1.62877837]
[1737331087888,0.3608,101170.0,101150.0,1.1391]
[1737331088089,0.3608,101160.0,101150.0,0.4067]
[1737331088287,0.48967837,101160.0,101140.0,0.00012441]
[1737331088489,0.12887837,101160.0,101140.0,0.00012441]
[1737331088792,0.3608,101150.0,101140.0,0.00012441]
[1737331089196,0.3608,101160.0,101140.0,0.00012441]
[1737331089388,1.33243401,101170.0,101140.0,0.00012441]
[1737331089588,0.48967837,101160.0,101140.0,0.00012441]
[1737331089796,0.3608,101150.0,101140.0,0.04962541]
[1737331089994,0.53917637,101150.0,101140.0,0.00012441]
[1737331090785,0.3608,101150.0,101140.0,0.00012441]
[1737331091096,0.3608,101150.0,101140.0,0.04962641]
[1737331091899,0.7831,101180.0,101140.0,0.17850478]
[1737331092097,0.48967837,101190.0,101150.0,0.3608]
[1737331092287,0.3608,101190.0,101160.0,0.3608]
[1737331092491,0.3608,101190.0,101150.0,0.12887837]
[1737331092696,0.3608,101170.0,101150.0,0.12887837]
[1737331093001,0.04813671,101170.0,101150.0,1.98967837]
[1737331093198,0.04813671,101170.0,101160.0,0.3608]
[1737331093399,0.04813671,101170.0,101160.0,0.48967837]
[1737331093599,0.04813671,101170.0,101160.0,0.12887837]
[1737331093802,0.04813671,101170.0,101160.0,0.48967837]
[1737331094094,1.0822996,101200.0,101160.0,0.48967837]
[1737331094095,0.14705205,101180.0,101160.0,0.48967837]
[1737331094598,0.50785205,101180.0,101160.0,0.12887837]
[1737331094792,0.50785205,101180.0,101150.0,2.52159837]
[1737331094993,0.50785205,101180.0,101150.0,2.39272]
[1737331095191,0.3608,101160.0,101150.0,0.53192]
[1737331095397,0.3608,101160.0,101150.0,0.5380747]
[1737331095596,0.410288,101170.0,101150.0,0.5380747]
[1737331095803,0.410295,101160.0,101140.0,0.00012441]
[1737331096002,0.53917637,101150.0,101140.0,0.00012441]
[1737331096200,0.049508,101130.0,101090.0,1.77271837]
[1737331096501,0.049508,101130.0,101100.0,0.00197823]
[1737331096502,0.3608,101110.0,101100.0,0.00197823]
[1737331097394,0.36088127,101110.0,101100.0,0.00197823]
[1737331097591,8.127e-05,101110.0,101100.0,0.17884169]
[1737331097791,8.127e-05,101110.0,101100.0,0.53964169]
[1737331098202,0.1471111,101160.0,101100.0,1.47816833]
[1737331098400,0.1471111,101160.0,101150.0,0.12887837]
[1737331098605,0.1471111,101160.0,101150.0,0.48967837]
[1737331099004,0.1471111,101160.0,101150.0,2.65047837]
[1737331099199,1e-08,101160.0,101150.0,2.65047837]
[1737331099701,1e-08,101160.0,101150.0,3.22586966]
[1737331100104,1e-08,101160.0,101150.0,2.40137837]
[1737331101503,1e-08,101160.0,101150.0,2.70137837]
[1737331102208,0.1,101200.0,101150.0,3.17176974]
[1737331102396,0.4608,101200.0,101170.0,0.48967837]
[1737331102601,0.1,101200.0,101180.0,0.48967837]
[1737331103109,0.1,101200.0,101190.0,0.3608]
[1737331103303,0.1,101200.0,101190.0,0.48967837]
[1737331103601,0.1,101200.0,101190.0,1.1090137]
[1737331103801,0.1,101200.0,101190.0,2.9698137]
[1737331104007,0.56675554,101220.0,101190.0,2.9698137]
[1737331104200,0.20595554,101220.0,101200.0,0.12887837]
[1737331104400,1.2129333,101230.0,101210.0,0.12887837]
[1737331104603,0.8521333,101230.0,101200.0,0.12887837]
[1737331104807,0.3608,101220.0,101200.0,0.48967837]
[1737331104997,1.21345331,101230.0,101200.0,0.48967837]
[1737331105205,0.3608,101220.0,101190.0,2.52243837]
[1737331105402,1.21345331,101230.0,101190.0,2.52147837]
[1737331105607,1.2129333,101230.0,101190.0,2.66974026]
[1737331105914,0.04813313,101220.0,101200.0,0.3608]
[1737331106613,0.04813313,101220.0,101210.0,0.3608]
[1737331106801,0.04813313,101220.0,101210.0,0.12887837]
[1737331107405,0.04813313,101220.0,101210.0,0.48967837]
[1737331108410,0.04813313,101220.0,101210.0,0.12887837]
[1737331108709,0.17678762,101230.0,101210.0,0.63791718]
[1737331108912,0.17678762,101230.0,101220.0,0.3608]
[1737331109307,0.17678762,101230.0,101220.0,1.8608]
[1737331109616,0.17678762,101230.0,101220.0,0.3608]
[1737331110015,0.17678762,101230.0,101220.0,2.1608]
[1737331110313,0.02284473,101240.0,101220.0,2.00986974]
[1737331110614,0.02284473,101240.0,101230.0,0.48967837]
[1737331111109,0.02284473,101240.0,101230.0,0.6387966]
[1737331111807,0.02284473,101240.0,101230.0,0.48967837]
[1737331112009,1.14615877,101270.0,101230.0,0.48967837]
[1737331112010,0.97735881,101270.0,101230.0,0.48967837]
[1737331112208,0.61655881,101270.0,101250.0,0.3608]
[1737331112409,0.61655881,101270.0,101240.0,0.3608]
[1737331112713,0.3608,101250.0,101210.0,0.53775916]
[1737331112908,0.049464,101230.0,101210.0,0.17695916]
[1737331113104,0.3608,101220.0,101210.0,0.17695916]
[1737331113315,0.410268,101220.0,101210.0,0.17695916]
[1737331113511,0.771068,101220.0,101200.0,0.2962543]
[1737331113818,0.3003,101260.0,101210.0,0.85047837]
[1737331114018,1.22415853,101300.0,101250.0,0.7216]
[1737331114218,0.3608,101280.0,101260.0,0.3608]